fUST/lending_fUST_20251004
["ID","MTS","AMOUNT","RATE_DAILY","PERIOD"]
[389140577,1759590140000,-4088.43450394,0.000187,2]
[389140578,1759590140031,-1823.14099212,0.000187,2]
[389140579,1759590146043,-1200.0,0.00018699,2]
[389140580,1759590146077,-2600.01,0.000187,2]
[389140581,1759590146128,-2399.99,0.000187,2]
[389140582,1759590188323,155.805852,0.00024,30]
[389140584,1759590216805,-5000.0,0.00018513,2]
[389140585,1759590216858,-0.01,0.00018513,2]
[389140586,1759590220681,-299.99,0.00018513,2]
[389140587,1759590220715,-227.47828011,0.00018599,2]
[389140588,1759590220750,-172.2568017,0.00018668,2]
[389140589,1759590220784,-500.0,0.00018699,2]
[389140590,1759590220819,-500.0,0.00018699,2]
[389140591,1759590220853,-500.0,0.00018699,2]
[389140592,1759590220886,-500.0,0.00018699,2]
[389140593,1759590220919,-500.0,0.00018699,2]
[389140594,1759590220953,-161.75779656,0.00018699,2]
[389140595,1759590220996,-500.0,0.00018699,2]
[389140596,1759590221029,-271.46044076,0.00018699,2]
[389140597,1759590221064,-500.0,0.00018699,2]
[389140598,1759590221096,-234.12336174,0.00018699,2]
[389140599,1759590221615,-265.87663826,0.00018699,2]
[389140600,1759590224723,-500.0,0.00018699,2]
[389140601,1759590224756,-500.0,0.00018699,2]
[389140602,1759590224788,-500.0,0.00018699,2]
[389140603,1759590224820,-500.0,0.00018699,2]
[389140604,1759590224854,-500.0,0.00018699,2]
[389140605,1759590224887,-179.4675456,0.00018699,2]
[389140606,1759590224921,-500.0,0.00018699,2]
[389140607,1759590224957,-500.0,0.00018699,2]
[389140608,1759590224995,-550.0,0.00018699,2]
[389140609,1759590225032,-500.0,0.00018699,2]
[389140610,1759590225067,-182.71547195,0.00018699,2]
[389140611,1759590225369,-175.6439649,0.00018699,2]
[389140615,1759590276103,-300.0,0.00018698,2]
[389140616,1759590276138,-500.0,0.00018699,2]
[389140617,1759590276172,-324.3560351,0.00018699,2]
[389140618,1759590276208,-500.0,0.00018699,2]
[389140619,1759590276243,-500.0,0.00018699,2]
[389140620,1759590276279,-500.0,0.00018699,2]
[389140621,1759590276314,-500.0,0.00018699,2]
[389140622,1759590276348,-500.0,0.00018699,2]
[389140623,1759590276385,-500.0,0.00018699,2]
[389140624,1759590276422,-500.0,0.00018699,2]
[389140625,1759590276459,-251.2979298,0.00018699,2]
[389140626,1759590277082,-248.7020702,0.00018699,2]
[389140627,1759590279252,-500.0,0.00018699,2]
[389140628,1759590279287,-500.0,0.00018699,2]
[389140629,1759590279325,-500.0,0.00018699,2]
[389140630,1759590279358,-500.0,0.00018699,2]
[389140631,1759590279392,-500.0,0.00018699,2]
[389140632,1759590279424,-500.0,0.00018699,2]
[389140633,1759590279459,-500.0,0.00018699,2]
[389140634,1759590279493,-647.55008783,0.00018699,2]
[389140635,1759590279526,-500.0,0.00018699,2]
[389140636,1759590279563,-204.90982434,0.00018699,2]
[389140637,1759590279769,-295.09017566,0.00018699,2]
[389140638,1759590283303,-500.0,0.00018699,2]
[389140639,1759590283339,-500.0,0.00018699,2]
[389140640,1759590283376,-500.0,0.00018699,2]
[389140641,1759590283411,-500.0,0.00018699,2]
[389140642,1759590283447,-500.0,0.00018699,2]
[389140643,1759590283482,-309.81489711,0.00018699,2]
[389140644,1759590283519,-500.0,0.00018699,2]
[389140645,1759590283553,-500.0,0.00018699,2]
[389140646,1759590283590,-500.0,0.00018699,2]
[389140647,1759590283627,-500.0,0.00018699,2]
[389140648,1759590283898,-380.38020578,0.00018699,2]
[389140650,1759590312490,200.0,0.00028081,120]
[389140651,1759590314482,200.0,0.00028081,120]
[389140652,1759590316253,200.0,0.00028081,120]
[389140653,1759590317784,-300.0,0.00018698,2]
[389140654,1759590317818,-300.0,0.00018698,2]
[389140655,1759590317855,-300.0,0.00018698,2]
[389140656,1759590317888,-1200.0,0.00018698,2]
[389140657,1759590362597,300.0,0.00018698,2]
[389140658,1759590394416,500.0,0.00018698,2]
[389140659,1759590394453,500.0,0.00018698,2]
[389140660,1759590394487,500.0,0.00018698,2]
[389140661,1759590394520,500.0,0.00018698,2]
[389140662,1759590394562,227.18732785,0.00018698,2]
[389140663,1759590394594,500.0,0.00018698,2]
[389140664,1759590394632,500.0,0.00018698,2]
[389140665,1759590394664,452.93719554,0.00018698,2]
[389140666,1759590394700,627.50556531,0.00018698,2]
[389140667,1759590394731,500.0,0.00018698,2]
[389140668,1759590394771,606.97713537,0.00018698,2]
[389140669,1759590394815,85.40277593,0.00018698,2]
[389140672,1759590414648,-300.0,0.00018599,2]
[389140673,1759590414683,-4444.53381156,0.00018599,2]
[389140674,1759590416548,-510.94237688,0.00018599,2]
[389140676,1759590463120,-1054.69276513,0.00018599,2]
[389140677,1759590463159,-1200.0,0.00018697,2]
[389140678,1759590463197,-414.59722407,0.00018698,2]
[389140679,1759590463237,-500.0,0.00018698,2]
[389140680,1759590463273,-500.0,0.00018698,2]
[389140681,1759590463312,-500.0,0.00018698,2]
[389140682,1759590463350,-500.0,0.00018698,2]
[389140683,1759590463389,-161.4300216,0.00018698,2]
[389140684,1759590463603,-338.5699784,0.00018698,2]
[389140685,1759590463641,-500.0,0.00018698,2]
[389140686,1759590463677,-500.0,0.00018698,2]
[389140687,1759590463714,-500.0,0.00018698,2]
[389140688,1759590463752,-500.0,0.00018698,2]
[389140689,1759590463789,-500.0,0.00018698,2]
[389140690,1759590464028,-500.0,0.00018698,2]
[389140691,1759590464069,-500.0,0.00018698,2]
[389140692,1759590464106,-500.0,0.00018698,2]
[389140693,1759590464146,-500.0,0.00018698,2]
[389140694,1759590464254,-500.0,0.00018698,2]
[389140695,1759590464295,-500.0,0.00018698,2]
[389140696,1759590464334,-195.02431853,0.00018698,2]
[389140697,1759590464371,-500.0,0.00018698,2]
[389140698,1759590464410,-500.0,0.00018698,2]
[389140699,1759590464447,-500.0,0.00018698,2]
[389140700,1759590479143,-382.18187124,0.00018699,2]
[389140701,1759590479178,-500.0,0.00018699,2]
[389140702,1759590479214,-165.26880366,0.00018699,2]
[389140703,1759590479247,-150.0,0.00018699,2]
[389140704,1759590479280,-2605.1086502,0.000187,2]
[389140705,1759590479452,-2394.8913498,0.000187,2]
[389140706,1759590479485,-210.2273004,0.000187,2]
[389140707,1759590479674,-4789.7726996,0.000187,2]
[389140708,1759590479711,-120.4646008,0.000187,2]
[389140709,1759590479812,-179.5353992,0.000187,2]
[389140710,1759590479843,-4640.9392016,0.000187,2]
[389140711,1759590479991,-359.0607984,0.000187,2]
[389140712,1759590480041,-2770.15614401,0.00018773,2]
[389140713,1759590480083,550.52,0.00015984,2]
[389140714,1759590480140,-7682.85836311,0.00018773,2]
[389140715,1759590480150,-1333.99661629,0.00018773,2]
[389140716,1759590480159,-73.5742222,0.000188,2]
[389140717,1759590480274,550.52,0.00015984,2]
[389140718,1759590481156,-643.27247726,0.000188,2]
[389140719,1759590481191,-801.74,0.00018827,3]
[389140720,1759590481230,-400.87,0.00018827,3]
[389140721,1759590481262,-200.44,0.00018827,3]
[389140722,1759590481294,-601.33,0.00018827,3]
[389140723,1759590481326,-205.96,0.00018827,3]
[389140724,1759590481360,-617.88,0.00018827,3]
[389140725,1759590481392,-219.406388,0.00018837,10]
[389140727,1759590482915,300.0,0.00018772,2]
[389140728,1759590484897,300.0,0.000186,2]
[389140730,1759590497426,300.0,0.000186,2]
[389140731,1759590519182,267.52730987,0.00018836,2]
[389140732,1759590519536,465.68816257,0.00018836,2]
[389140733,1759590520455,7273.7415109,0.00018714,2]
[389140734,1759590521268,2260.58032653,0.00017963,2]
[389140735,1759590521297,5465.69332237,0.00017963,2]
[389140736,1759590521816,207.92,0.00018827,3]
[389140737,1759590521951,178.55301504,0.00018836,2]
[389140738,1759590521986,500.0,0.00018836,2]
[389140739,1759590522027,500.0,0.00018836,2]
[389140740,1759590522070,195.0217631,0.00018836,2]
[389140741,1759590522114,243.89159095,0.00018836,2]
[389140744,1759590525660,150.0,0.000186,2]
[389140928,1759590633745,-300.0,0.000186,2]
[389140929,1759590633755,-919.4,0.00018649,2]
[389140930,1759590633827,-609.75,0.00018649,2]
[389140946,1759590638530,-1373.3573275,0.00018649,2]
[389140947,1759590638545,-22870.1765541,0.00018714,2]
[389140948,1759590638559,-623.81,0.00018827,3]
[389140950,1759590638574,-1200.0,0.00018835,2]
[389140951,1759590638587,-826.29413717,0.00018836,2]
[389140952,1759590638604,-300.0,0.00018836,2]
[389140953,1759590638619,-300.0,0.00018836,2]
[389140956,1759590638633,-151.0,0.00018836,2]
[389140958,1759590638646,-151.0,0.00018836,2]
[389140960,1759590638659,-370000.0,0.00018837,2]
[389140962,1759590638673,-300.0,0.00018837,2]
[389140964,1759590638686,-2825.32847986,0.00018837,2]
[389140966,1759590638701,-500.0,0.00018837,2]
[389140967,1759590638714,-1333.99661625,0.00018849,2]
[389140968,1759590638726,-50000.0,0.00018873,2]
[389140969,1759590638737,-500.0,0.00018873,2]
[389140970,1759590638750,-500.0,0.00018873,2]
[389140971,1759590638763,-500.0,0.00018873,2]
[389140972,1759590638776,-500.0,0.00018873,2]
[389140973,1759590638789,-500.0,0.00018873,2]
[389140974,1759590638803,-500.0,0.00018873,2]
[389140975,1759590638817,-500.0,0.00018873,2]
[389140976,1759590638830,-500.0,0.00018873,2]
[389140977,1759590638844,-196.09,0.000189,2]
[389140978,1759590638856,-151.0,0.000189,2]
[389140979,1759590638866,-1333.99661625,0.00018926,2]
[389140980,1759590638877,-6721.14622935,0.00018938,2]
[389140981,1759590638890,-100000.0,0.0001899,2]
[389140982,1759590638906,-283.0,0.00018996,2]
[389140983,1759590638921,-977.66,0.00019,2]
[389140984,1759590638932,-151.0,0.00019,2]
[389140985,1759590638944,-151.0,0.00019,2]
[389140986,1759590638959,-151.0,0.00019,2]
[389140987,1759590638972,-1333.99661625,0.00019002,2]
[389140988,1759590638984,-1333.99661625,0.00019078,2]
[389140989,1759590638995,-9674.18197823,0.00019078,2]
[389140990,1759590639009,-500.0,0.00019079,2]
[389140991,1759590639021,-433.0,0.00019079,2]
[389140992,1759590639036,-305.15,0.00019079,2]
[389140993,1759590639048,-305.15,0.00019079,2]
[389140994,1759590639062,-305.15,0.00019079,2]
[389140995,1759590639075,-305.15,0.00019079,2]
[389140996,1759590639088,-305.15,0.00019079,2]
[389140997,1759590639103,-305.15,0.00019079,2]
[389140998,1759590639117,-305.17,0.00019079,2]
[389140999,1759590639129,-151.0,0.000191,2]
[389141000,1759590639143,-151.0,0.000191,2]
[389141001,1759590639156,-151.0,0.000191,2]
[389141002,1759590639168,-151.0,0.000191,2]
[389141003,1759590639181,-151.0,0.000191,2]
[389141004,1759590639195,-500.0,0.00019111,2]
[389141005,1759590639207,-360.0,0.00019137,2]
[389141006,1759590639221,-151.0,0.00019166,2]
[389141007,1759590639233,-151.0,0.00019166,2]
[389141008,1759590639245,-151.0,0.00019166,2]
[389141009,1759590639258,-151.0,0.00019166,2]
[389141010,1759590639270,-151.0,0.00019166,2]
[389141011,1759590639282,-151.0,0.00019166,2]
[389141012,1759590639293,-151.0,0.00019166,2]
[389141013,1759590639305,-151.0,0.00019166,2]
[389141014,1759590639316,-151.0,0.00019166,2]
[389141015,1759590639329,-151.0,0.00019166,2]
[389141016,1759590639341,-151.0,0.00019166,2]
[389141017,1759590639354,-151.0,0.00019166,2]
[389141018,1759590639367,-151.0,0.00019166,2]
[389141019,1759590639379,-151.0,0.00019166,2]
[389141020,1759590639392,-151.0,0.00019166,2]
[389141021,1759590639404,-151.0,0.00019166,2]
[389141022,1759590639417,-151.0,0.00019166,2]
[389141023,1759590639428,-151.0,0.00019166,2]
[389141024,1759590639441,-151.0,0.00019166,2]
[389141025,1759590639453,-151.0,0.00019166,2]
[389141026,1759590639465,-151.0,0.00019166,2]
[389141027,1759590639477,-151.0,0.00019166,2]
[389141028,1759590639491,-151.0,0.00019166,2]
[389141029,1759590639503,-151.0,0.00019166,2]
[389141030,1759590639516,-151.0,0.00019166,2]
[389141031,1759590639528,-151.0,0.00019166,2]
[389141032,1759590639540,-151.0,0.00019166,2]
[389141033,1759590639552,-151.0,0.00019166,2]
[389141034,1759590639565,-151.0,0.00019166,2]
[389141035,1759590639577,-151.0,0.00019166,2]
[389141036,1759590639589,-151.0,0.00019166,2]
[389141037,1759590639603,-151.0,0.00019166,2]
[389141038,1759590639614,-151.0,0.00019166,2]
[389141039,1759590639627,-151.0,0.00019166,2]
[389141040,1759590639639,-151.0,0.00019166,2]
[389141041,1759590639652,-151.0,0.00019166,2]
[389141042,1759590639664,-151.0,0.00019166,2]
[389141043,1759590639677,-151.0,0.00019166,2]
[389141044,1759590639689,-151.0,0.00019166,2]
[389141045,1759590639701,-151.0,0.00019166,2]
[389141046,1759590639713,-280.31460735,0.00019173,2]
[389141047,1759590639725,-500.0,0.00019173,2]
[389141048,1759590639737,-500.0,0.00019173,2]
[389141049,1759590639749,-500.0,0.00019173,2]
[389141050,1759590639760,-500.0,0.00019173,2]
[389141051,1759590639772,-500.0,0.00019173,2]
[389141052,1759590639784,-500.0,0.00019173,2]
[389141053,1759590639796,-500.0,0.00019173,2]
[389141055,1759590639807,-500.0,0.00019173,2]
[389141056,1759590639819,-500.0,0.00019173,2]
[389141057,1759590639830,-500.0,0.00019173,2]
[389141058,1759590639842,-500.0,0.00019173,2]
[389141059,1759590639855,-500.0,0.00019173,2]
[389141060,1759590639866,-176.32845848,0.00019173,2]
[389141061,1759590639877,-500.0,0.00019173,2]
[389141062,1759590639889,-192.94406099,0.00019173,2]
[389141063,1759590639900,-500.0,0.00019173,2]
[389141064,1759590639912,-500.0,0.00019173,2]
[389141065,1759590639923,-500.0,0.00019173,2]
[389141066,1759590639936,-500.0,0.00019173,2]
[389141067,1759590639948,-500.0,0.00019173,2]
[389141068,1759590639959,-500.0,0.00019173,2]
[389141069,1759590639971,-500.0,0.00019173,2]
[389141070,1759590639986,-500.0,0.00019173,2]
[389141071,1759590639997,-500.0,0.00019173,2]
[389141072,1759590640009,-500.0,0.00019173,2]
[389141073,1759590640021,-500.0,0.00019173,2]
[389141074,1759590640032,-500.0,0.00019173,2]
[389141075,1759590640043,-500.0,0.00019173,2]
[389141076,1759590640055,-500.0,0.00019173,2]
[389141077,1759590640067,-500.0,0.00019173,2]
[389141078,1759590640080,-500.0,0.00019173,2]
[389141079,1759590640091,-500.0,0.00019173,2]
[389141080,1759590640106,-500.0,0.00019173,2]
[389141081,1759590640118,-500.0,0.00019173,2]
[389141082,1759590640130,-500.0,0.00019173,2]
[389141083,1759590640142,-500.0,0.00019173,2]
[389141085,1759590640153,-500.0,0.00019173,2]
[389141087,1759590640165,-500.0,0.00019173,2]
[389141089,1759590640177,-500.0,0.00019173,2]
[389141091,1759590640189,-500.0,0.00019173,2]
[389141093,1759590640200,-500.0,0.00019173,2]
[389141096,1759590640213,-559.98411796,0.00019173,2]
[389141098,1759590640224,-500.0,0.00019173,2]
[389141100,1759590640235,-500.0,0.00019173,2]
[389141102,1759590640246,-500.0,0.00019173,2]
[389141104,1759590640257,-500.0,0.00019173,2]
[389141106,1759590640270,-500.0,0.00019178,2]
[389141108,1759590640279,-363.92080281,0.00019178,2]
[389141110,1759590640289,-500.0,0.00019178,2]
[389141112,1759590640297,-500.0,0.00019178,2]
[389141114,1759590640308,-500.0,0.00019178,2]
[389141116,1759590640318,-500.0,0.00019178,2]
[389141118,1759590640328,-500.0,0.00019178,2]
[389141120,1759590640337,-465.81052306,0.00019178,2]
[389141122,1759590640347,-500.0,0.00019178,2]
[389141140,1759590640356,-500.0,0.00019178,2]
[389141141,1759590640650,-500.0,0.00019178,2]
[389141142,1759590640660,-500.0,0.00019178,2]
[389141143,1759590640670,-500.0,0.00019178,2]
[389141144,1759590640679,-500.0,0.00019178,2]
[389141145,1759590640689,-501.33085702,0.00019178,3]
[389141146,1759590640698,-500.0,0.00019178,2]
[389141147,1759590640708,-500.0,0.00019178,2]
[389141148,1759590640717,-570.2,0.00019178,2]
[389141149,1759590640726,-500.0,0.00019178,2]
[389141150,1759590640737,-500.0,0.00019178,2]
[389141151,1759590640746,-500.0,0.00019178,2]
[389141152,1759590640755,-500.0,0.00019178,2]
[389141153,1759590640765,-500.0,0.00019178,2]
[389141154,1759590640775,-220.63,0.00019178,2]
[389141155,1759590640784,-500.0,0.00019178,2]
[389141156,1759590640794,-851.18,0.00019178,2]
[389141157,1759590640804,-500.0,0.00019178,2]
[389141158,1759590640813,-500.0,0.00019178,2]
[389141159,1759590640823,-500.0,0.00019178,2]
[389141160,1759590640832,-500.0,0.00019178,2]
[389141161,1759590640841,-500.0,0.00019178,2]
[389141162,1759590640851,-500.0,0.00019178,2]
[389141163,1759590640861,-705.06,0.00019178,2]
[389141164,1759590640870,-500.0,0.00019178,2]
[389141165,1759590640880,-500.0,0.00019178,2]
[389141166,1759590640890,-500.0,0.00019178,2]
[389141167,1759590640900,-1000.0,0.00019178,2]
[389141168,1759590640910,-500.0,0.00019178,2]
[389141169,1759590640919,-500.0,0.00019178,2]
[389141170,1759590640929,-500.0,0.00019178,2]
[389141171,1759590640937,-500.0,0.00019178,2]
[389141172,1759590640946,-231.67763548,0.00019178,2]
[389141173,1759590640955,-500.0,0.00019178,2]
[389141174,1759590640965,-500.0,0.00019178,2]
[389141175,1759590640974,-500.0,0.00019178,2]
[389141176,1759590640984,-500.0,0.00019178,2]
[389141177,1759590640994,-500.0,0.00019178,2]
[389141178,1759590641003,-500.0,0.00019178,2]
[389141179,1759590641014,-500.0,0.00019178,2]
[389141180,1759590641023,-500.0,0.00019178,2]
[389141181,1759590641033,-500.0,0.00019178,2]
[389141182,1759590641042,-388.20460596,0.00019178,2]
[389141183,1759590641052,-500.0,0.00019178,2]
[389141184,1759590641062,-500.0,0.00019178,2]
[389141185,1759590641071,-500.0,0.00019178,2]
[389141186,1759590641082,-500.0,0.00019178,2]
[389141187,1759590641091,-1245.62,0.00019178,2]
[389141188,1759590641101,-500.0,0.00019178,2]
[389141189,1759590641114,-500.0,0.00019178,2]
[389141190,1759590641124,-1777.82,0.00019178,2]
[389141191,1759590641134,-500.0,0.00019178,2]
[389141192,1759590641143,-500.0,0.00019178,2]
[389141193,1759590641153,-500.0,0.00019178,2]
[389141194,1759590641162,-921.66,0.00019178,2]
[389141195,1759590641171,-500.0,0.00019178,2]
[389141196,1759590641181,-630.28631653,0.00019178,2]
[389141197,1759590641190,-500.0,0.00019178,2]
[389141198,1759590641200,-1196.39,0.00019178,2]
[389141199,1759590641210,-500.0,0.00019178,2]
[389141200,1759590641219,-500.0,0.00019178,2]
[389141201,1759590641228,-529.14,0.00019178,2]
[389141202,1759590641238,-507.8395514,0.00019178,2]
[389141203,1759590641247,-500.0,0.00019178,2]
[389141204,1759590641258,-500.0,0.00019178,2]
[389141205,1759590641267,-534.32,0.00019178,2]
[389141206,1759590641276,-500.0,0.00019178,2]
[389141207,1759590641287,-500.0,0.00019178,2]
[389141208,1759590641296,-500.0,0.00019178,2]
[389141209,1759590641306,-578.55447669,0.00019178,2]
[389141210,1759590641315,-500.0,0.00019178,2]
[389141211,1759590641324,-1227.79,0.00019178,2]
[389141212,1759590641333,-500.0,0.00019178,2]
[389141213,1759590641343,-500.0,0.00019178,2]
[389141214,1759590641353,-500.0,0.00019178,2]
[389141215,1759590641363,-505.12985618,0.00019178,2]
[389141216,1759590641373,-500.0,0.00019178,2]
[389141217,1759590641383,-500.0,0.00019178,2]
[389141218,1759590641392,-500.0,0.00019178,2]
[389141219,1759590641402,-500.0,0.00019178,2]
[389141220,1759590641412,-500.0,0.00019178,2]
[389141221,1759590641421,-500.0,0.00019178,2]
[389141222,1759590641431,-500.0,0.00019178,2]
[389141223,1759590641441,-1123.99,0.00019178,2]
[389141224,1759590641450,-207.62049741,0.00019178,2]
[389141225,1759590641460,-488.50029924,0.00019178,2]
[389141226,1759590641470,-513.6,0.00019178,2]
[389141227,1759590641480,-500.0,0.00019178,2]
[389141228,1759590641489,-500.0,0.00019178,2]
[389141229,1759590641499,-500.0,0.00019178,2]
[389141230,1759590641508,-500.0,0.00019178,2]
[389141231,1759590641518,-500.0,0.00019178,2]
[389141232,1759590641527,-500.0,0.00019178,2]
[389141233,1759590641537,-500.0,0.00019178,2]
[389141234,1759590641546,-871.48,0.00019178,2]
[389141235,1759590641556,-663.01,0.00019178,2]
[389141236,1759590641566,-500.0,0.00019178,2]
[389141237,1759590641577,-1603.11,0.00019178,2]
[389141238,1759590641587,-500.0,0.00019178,2]
[389141239,1759590641596,-500.0,0.00019178,2]
[389141240,1759590641606,-564.32,0.00019178,2]
[389141241,1759590641616,-500.0,0.00019178,2]
[389141242,1759590641625,-551.35914606,0.00019178,2]
[389141243,1759590641635,-2830.57,0.00019178,2]
[389141244,1759590641645,-500.0,0.00019178,2]
[389141245,1759590641655,-500.0,0.00019178,2]
[389141246,1759590641665,-500.0,0.00019178,2]
[389141247,1759590641674,-500.0,0.00019178,2]
[389141248,1759590641684,-500.0,0.00019178,2]
[389141249,1759590641693,-224.79346775,0.00019178,2]
[389141250,1759590641703,-500.0,0.00019178,2]
[389141251,1759590641712,-500.0,0.00019178,2]
[389141252,1759590641722,-500.0,0.00019178,2]
[389141253,1759590641731,-500.0,0.00019178,2]
[389141254,1759590641741,-500.0,0.00019178,2]
[389141255,1759590641750,-500.0,0.00019178,2]
[389141256,1759590641759,-500.0,0.00019178,2]
[389141257,1759590641770,-500.0,0.00019178,2]
[389141258,1759590641780,-500.0,0.00019178,2]
[389141259,1759590641789,-500.0,0.00019178,2]
[389141260,1759590641798,-500.0,0.00019178,2]
[389141261,1759590641808,-500.0,0.00019178,2]
[389141262,1759590641817,-500.0,0.00019178,2]
[389141263,1759590641827,-500.0,0.00019178,2]
[389141264,1759590641836,-500.0,0.00019178,2]
[389141265,1759590641846,-500.0,0.00019178,2]
[389141266,1759590641856,-1054.46,0.00019178,2]
[389141267,1759590641865,-1656.64,0.00019178,2]
[389141268,1759590641875,-500.0,0.00019178,2]
[389141269,1759590641884,-500.0,0.00019178,2]
[389141270,1759590641893,-500.0,0.00019178,2]
[389141271,1759590641903,-500.0,0.00019178,2]
[389141272,1759590641912,-500.0,0.00019178,2]
[389141273,1759590641921,-500.0,0.00019178,2]
[389141274,1759590641931,-537.94,0.00019178,2]
[389141275,1759590641940,-978.72,0.00019178,2]
[389141276,1759590641949,-500.0,0.00019178,2]
[389141277,1759590641959,-500.0,0.00019178,2]
[389141278,1759590641968,-765.99,0.00019178,2]
[389141279,1759590641978,-500.0,0.00019178,2]
[389141280,1759590641987,-958.69,0.00019178,2]
[389141281,1759590641997,-1025.98,0.00019178,2]
[389141282,1759590642006,-562.14,0.00019178,2]
[389141283,1759590642015,-500.0,0.00019178,2]
[389141284,1759590642024,-500.0,0.00019178,2]
[389141285,1759590642033,-500.0,0.00019178,2]
[389141286,1759590642046,-500.0,0.00019178,2]
[389141287,1759590642056,-500.0,0.00019178,2]
[389141288,1759590642120,-500.0,0.00019178,2]
[389141289,1759590642129,-533.74,0.00019178,2]
[389141290,1759590642139,-500.0,0.00019178,2]
[389141291,1759590642149,-500.0,0.00019178,2]
[389141292,1759590642158,-709.18,0.00019178,2]
[389141293,1759590642168,-500.0,0.00019178,2]
[389141294,1759590642177,-555.69,0.00019178,2]
[389141295,1759590642187,-500.0,0.00019178,2]
[389141296,1759590642196,-500.0,0.00019178,2]
[389141297,1759590642206,-508.88,0.00019178,2]
[389141298,1759590642215,-500.0,0.00019178,2]
[389141299,1759590642224,-664.88,0.00019178,2]
[389141300,1759590642234,-500.0,0.00019178,2]
[389141301,1759590642244,-500.0,0.00019178,2]
[389141302,1759590642253,-500.0,0.00019178,2]
[389141303,1759590642262,-500.0,0.00019178,2]
[389141304,1759590642271,-500.0,0.00019178,2]
[389141305,1759590642280,-500.0,0.00019178,2]
[389141306,1759590642290,-500.0,0.00019178,2]
[389141307,1759590642299,-3239.32,0.00019178,2]
[389141308,1759590642309,-402.4956591,0.00019178,2]
[389141309,1759590642320,-500.0,0.00019178,2]
[389141310,1759590642330,-668.88,0.00019178,2]
[389141311,1759590642339,-500.0,0.00019178,2]
[389141312,1759590642349,-500.0,0.00019178,2]
[389141313,1759590642358,-480.0,0.00019178,2]
[389141314,1759590642368,-507.60738747,0.00019178,2]
[389141315,1759590642377,-561.44,0.00019178,2]
[389141316,1759590642386,-2075.26,0.00019178,2]
[389141317,1759590642395,-500.0,0.00019178,2]
[389141318,1759590642405,-500.0,0.00019178,2]
[389141319,1759590642414,-500.0,0.00019178,2]
[389141320,1759590642424,-500.0,0.00019178,2]
[389141321,1759590642434,-406.4839858,0.00019178,2]
[389141322,1759590642443,-500.0,0.00019178,2]
[389141323,1759590642453,-500.0,0.00019178,2]
[389141324,1759590642463,-500.0,0.00019178,2]
[389141325,1759590642472,-441.82596915,0.00019178,2]
[389141326,1759590642482,-491.8156685,0.00019178,2]
[389141327,1759590642491,-500.0,0.00019178,2]
[389141328,1759590642501,-500.0,0.00019178,2]
[389141329,1759590642511,-500.0,0.00019178,2]
[389141330,1759590642521,-500.0,0.00019178,2]
[389141331,1759590642531,-1601.94,0.00019178,2]
[389141332,1759590642541,-500.0,0.00019178,2]